[Event "Titled Tuesday Blitz March 28 Late 2023"]
[White "Li, Hui"]
[Black "Quinones Garcia, Santiago"]
[WhiteFideId "15400310"]
[BlackFideId "4408497"]
[WhiteElo "1967"]
[BlackElo "2263"]
[Result "1-0"]
[Round "10"]
[TimeControl "180+2"]
[Date "2023.03.28"]
[WhiteClock "0:00:07"]
[BlackClock "0:00:12"]

1. e4 {[%clk 0:03:00]}  e5 {[%clk 0:02:59]} 2. Nf3 {[%clk 0:03:01]}  Nc6 {[%clk 0:03:00]} 3. Bb5 {[%clk 0:03:01]}  a6 {[%clk 0:03:01]} 4. Ba4 {[%clk 0:03:01]}  Nf6 {[%clk 0:03:01]} 5. O-O {[%clk 0:03:01]}  b5 {[%clk 0:03:02]} 6. Bb3 {[%clk 0:03:02]}  Be7 {[%clk 0:03:03]} 7. Re1 {[%clk 0:03:02]}  O-O {[%clk 0:03:02]} 8. c3 {[%clk 0:03:02]}  d5 {[%clk 0:03:03]} 9. exd5 {[%clk 0:03:03]}  Nxd5 {[%clk 0:03:03]} 10. Nxe5 {[%clk 0:03:03]}  Nxe5 {[%clk 0:03:04]} 11. Rxe5 {[%clk 0:03:04]}  c6 {[%clk 0:03:05]} 12. d3 {[%clk 0:03:04]}  Bd6 {[%clk 0:03:05]} 13. Re1 {[%clk 0:03:04]}  Qh4 {[%clk 0:03:05]} 14. g3 {[%clk 0:03:04]}  Qh3 {[%clk 0:03:05]} 15. Re4 {[%clk 0:03:05]}  g5 {[%clk 0:03:04]} 16. Bxg5 {[%clk 0:03:03]}  Be6 {[%clk 0:02:52]} 17. Nd2 {[%clk 0:02:43]}  Qf5 {[%clk 0:02:48]} 18. Bh6 {[%clk 0:02:28]}  Rfe8 {[%clk 0:02:44]} 19. Bc2 {[%clk 0:00:40]}  Qg6 {[%clk 0:02:39]} 20. Be3 {[%clk 0:00:35]}  Bf5 {[%clk 0:02:37]} 21. Rxe8+ {[%clk 0:00:32]}  Rxe8 {[%clk 0:02:38]} 22. Ne4 {[%clk 0:00:32]}  Bc7 {[%clk 0:02:32]} 23. Qf1 {[%clk 0:00:27]}  h5 {[%clk 0:02:22]} 24. Re1 {[%clk 0:00:26]}  h4 {[%clk 0:02:20]} 25. Qg2 {[%clk 0:00:25]}  h3 {[%clk 0:02:14]} 26. Qf1 {[%clk 0:00:22]}  Bg4 {[%clk 0:01:58]} 27. Bd4 {[%clk 0:00:19]}  f5 {[%clk 0:01:51]} 28. Nd2 {[%clk 0:00:13]}  Rxe1 {[%clk 0:01:39]} 29. Qxe1 {[%clk 0:00:14]}  f4 {[%clk 0:01:38]} 30. Qe4 {[%clk 0:00:12]}  Bf5 {[%clk 0:01:37]} 31. Qe1 {[%clk 0:00:08]}  Kf7 {[%clk 0:01:24]} 32. Ne4 {[%clk 0:00:08]}  Qg4 {[%clk 0:01:14]} 33. Bd1 {[%clk 0:00:07]}  Qg6 {[%clk 0:01:12]} 34. Qe2 {[%clk 0:00:07]}  Kg8 {[%clk 0:01:08]} 35. Qh5 {[%clk 0:00:06]}  Bxe4 {[%clk 0:01:08]} 36. dxe4 {[%clk 0:00:05]}  Qxe4 {[%clk 0:01:06]} 37. Qg4+ {[%clk 0:00:04]}  Kf7 {[%clk 0:01:04]} 38. Qh5+ {[%clk 0:00:04]}  Ke7 {[%clk 0:01:02]} 39. Qh4+ {[%clk 0:00:04]}  Kd7 {[%clk 0:00:57]} 40. Qxh3+ {[%clk 0:00:04]}  Kd6 {[%clk 0:00:54]} 41. Qf1 {[%clk 0:00:05]}  f3 {[%clk 0:00:52]} 42. Be3 {[%clk 0:00:03]}  Nxe3 {[%clk 0:00:41]} 43. fxe3 {[%clk 0:00:04]}  Qxe3+ {[%clk 0:00:42]} 44. Qf2 {[%clk 0:00:03]}  Qc1 {[%clk 0:00:42]} 45. Qxf3 {[%clk 0:00:02]}  Bb6+ {[%clk 0:00:42]} 46. Kg2 {[%clk 0:00:03]}  Qxb2+ {[%clk 0:00:43]} 47. Be2 {[%clk 0:00:03]}  Qc1 {[%clk 0:00:40]} 48. h4 {[%clk 0:00:03]}  a5 {[%clk 0:00:35]} 49. h5 {[%clk 0:00:03]}  b4 {[%clk 0:00:31]} 50. cxb4 {[%clk 0:00:03]}  axb4 {[%clk 0:00:32]} 51. Kh3 {[%clk 0:00:03]}  Qb2 {[%clk 0:00:24]} 52. Qf4+ {[%clk 0:00:02]}  Kc5 {[%clk 0:00:23]} 53. Qf3 {[%clk 0:00:02]}  Qxa2 {[%clk 0:00:21]} 54. h6 {[%clk 0:00:01]}  Qa7 {[%clk 0:00:13]} 55. Qf5+ {[%clk 0:00:01]}  Kd4 {[%clk 0:00:13]} 56. h7 {[%clk 0:00:02]}  Qg7 {[%clk 0:00:12]} 57. Bh5 {[%clk 0:00:02]}  Kc3 {[%clk 0:00:12]} 58. Bg6 {[%clk 0:00:02]}  Bd4 {[%clk 0:00:11]} 59. Qd3+ {[%clk 0:00:02]}  Kb2 {[%clk 0:00:11]} 60. Qc2+ {[%clk 0:00:03]}  Ka3 {[%clk 0:00:11]} 61. Qd3+ {[%clk 0:00:03]}  b3 {[%clk 0:00:11]} 62. g4 {[%clk 0:00:03]}  c5 {[%clk 0:00:11]} 63. Bf5 {[%clk 0:00:02]}  Ka2 {[%clk 0:00:11]} 64. Be6 {[%clk 0:00:02]}  Qg6 {[%clk 0:00:10]} 65. Qxg6 {[%clk 0:00:02]}  Ka1 {[%clk 0:00:09]} 66. Bxb3 {[%clk 0:00:02]}  Kb2 {[%clk 0:00:09]} 67. Qd3 {[%clk 0:00:03]}  Ka3 {[%clk 0:00:09]} 68. Bc4+ {[%clk 0:00:03]}  Kb4 {[%clk 0:00:10]} 69. Bd5 {[%clk 0:00:04]}  Ka5 {[%clk 0:00:11]} 70. Qc4 {[%clk 0:00:04]}  Kb6 {[%clk 0:00:12]} 71. Kg2 {[%clk 0:00:05]}  Kc7 {[%clk 0:00:12]} 72. Kf3 {[%clk 0:00:05]}  Kd6 {[%clk 0:00:13]} 73. Ke4 {[%clk 0:00:05]}  Ke7 {[%clk 0:00:14]} 74. Qxd4 {[%clk 0:00:06]}  cxd4 {[%clk 0:00:12]} 75. h8=Q {[%clk 0:00:06]}  d3 {[%clk 0:00:12]} 76. Kxd3 {[%clk 0:00:07]}  Kd6 {[%clk 0:00:12]} 77. Qd4 {[%clk 0:00:07]} 1-0


[Site "https://www.chess.com"]

[Event "Titled Tuesday Blitz March 28 Late 2023"]
[White "micke12a"]
[Black "Gatterer, Florian"]
[BlackFideId "811688"]
[WhiteElo "2331"]
[BlackElo "2221"]
[Result "1/2-1/2"]
[Round "10"]
[TimeControl "180+2"]
[Date "2023.03.28"]
[WhiteClock "0:00:30"]
[BlackClock "0:00:08"]

1. e4 {[%clk 0:02:55]}  c5 {[%clk 0:02:59]} 2. Nc3 {[%clk 0:02:54]}  e6 {[%clk 0:03:00]} 3. Nge2 {[%clk 0:02:53]}  Nc6 {[%clk 0:02:59]} 4. g3 {[%clk 0:02:53]}  d5 {[%clk 0:02:49]} 5. exd5 {[%clk 0:02:51]}  exd5 {[%clk 0:02:48]} 6. d4 {[%clk 0:02:50]}  cxd4 {[%clk 0:02:32]} 7. Nxd4 {[%clk 0:02:48]}  Nf6 {[%clk 0:02:30]} 8. Bg2 {[%clk 0:02:46]}  Bc5 {[%clk 0:02:29]} 9. Be3 {[%clk 0:02:30]}  Nxd4 {[%clk 0:02:21]} 10. Bxd4 {[%clk 0:02:29]}  Qe7+ {[%clk 0:02:20]} 11. Qe2 {[%clk 0:02:08]}  Bxd4 {[%clk 0:02:09]} 12. Qxe7+ {[%clk 0:02:02]}  Kxe7 {[%clk 0:02:08]} 13. Ne2 {[%clk 0:01:57]}  Bxb2 {[%clk 0:01:59]} 14. Rb1 {[%clk 0:01:57]}  Be5 {[%clk 0:01:59]} 15. O-O {[%clk 0:01:57]}  Re8 {[%clk 0:01:54]} 16. Rfe1 {[%clk 0:01:57]}  Kf8 {[%clk 0:01:54]} 17. f4 {[%clk 0:01:58]}  Bd6 {[%clk 0:01:52]} 18. Nc3 {[%clk 0:01:57]}  Bc5+ {[%clk 0:01:45]} 19. Kf1 {[%clk 0:01:56]}  Rxe1+ {[%clk 0:01:21]} 20. Kxe1 {[%clk 0:01:56]}  Rb8 {[%clk 0:00:31]} 21. h3 {[%clk 0:01:43]}  Be6 {[%clk 0:00:25]} 22. g4 {[%clk 0:01:41]}  g6 {[%clk 0:00:25]} 23. Kd2 {[%clk 0:01:39]}  Bb6 {[%clk 0:00:23]} 24. Kd3 {[%clk 0:01:34]}  Rc8 {[%clk 0:00:21]} 25. Ne2 {[%clk 0:01:30]}  Ne4 {[%clk 0:00:21]} 26. a4 {[%clk 0:01:22]}  Nc5+ {[%clk 0:00:20]} 27. Kd2 {[%clk 0:01:21]}  Nxa4 {[%clk 0:00:20]} 28. Ra1 {[%clk 0:01:21]}  Nc5 {[%clk 0:00:20]} 29. Rf1 {[%clk 0:01:17]}  Ne4+ {[%clk 0:00:20]} 30. Kd3 {[%clk 0:01:17]}  Nc5+ {[%clk 0:00:19]} 31. Kd2 {[%clk 0:01:17]}  Ne4+ {[%clk 0:00:18]} 32. Kd3 {[%clk 0:01:17]}  Bd7 {[%clk 0:00:17]} 33. Rb1 {[%clk 0:01:10]}  Ba4 {[%clk 0:00:16]} 34. c3 {[%clk 0:01:07]}  Rc6 {[%clk 0:00:15]} 35. Rb4 {[%clk 0:01:03]}  Bd1 {[%clk 0:00:13]} 36. Bxe4 {[%clk 0:01:01]}  Bxe2+ {[%clk 0:00:12]} 37. Kxe2 {[%clk 0:01:01]}  dxe4 {[%clk 0:00:12]} 38. Rxe4 {[%clk 0:01:00]}  Rxc3 {[%clk 0:00:12]} 39. h4 {[%clk 0:01:01]}  Rc2+ {[%clk 0:00:12]} 40. Kd3 {[%clk 0:01:01]}  Rh2 {[%clk 0:00:13]} 41. h5 {[%clk 0:01:01]}  gxh5 {[%clk 0:00:12]} 42. g5 {[%clk 0:01:01]}  h4 {[%clk 0:00:12]} 43. f5 {[%clk 0:01:02]}  Kg7 {[%clk 0:00:11]} 44. Re7 {[%clk 0:01:00]}  h6 {[%clk 0:00:11]} 45. g6 {[%clk 0:00:59]}  Rf2 {[%clk 0:00:09]} 46. Rxf7+ {[%clk 0:00:59]}  Kg8 {[%clk 0:00:09]} 47. f6 {[%clk 0:00:55]}  h3 {[%clk 0:00:08]} 48. Rg7+ {[%clk 0:00:56]}  Kf8 {[%clk 0:00:07]} 49. Rf7+ {[%clk 0:00:51]}  Kg8 {[%clk 0:00:07]} 50. Rg7+ {[%clk 0:00:37]}  Kf8 {[%clk 0:00:08]} 51. Rf7+ {[%clk 0:00:30]}  Kg8 {[%clk 0:00:08]} 1/2-1/2


[Site "https://www.chess.com"]

[Event "Titled Tuesday Blitz March 28 Late 2023"]
[White "Vivas Zamora, Fabian Ernesto"]
[Black "Zampronha, Wladimir Camilo"]
[WhiteFideId "3902480"]
[BlackFideId "2103087"]
[WhiteElo "2262"]
[BlackElo "2176"]
[Result "1-0"]
[Round "10"]
[TimeControl "180+2"]
[Date "2023.03.28"]
[WhiteClock "0:02:05"]
[BlackClock "0:01:55"]

1. e4 {[%clk 0:02:59]}  c5 {[%clk 0:03:00]} 2. Nc3 {[%clk 0:02:58]}  e6 {[%clk 0:03:00]} 3. Nf3 {[%clk 0:02:57]}  Nc6 {[%clk 0:02:59]} 4. d4 {[%clk 0:02:58]}  cxd4 {[%clk 0:02:59]} 5. Nxd4 {[%clk 0:02:59]}  Qc7 {[%clk 0:02:59]} 6. Be3 {[%clk 0:02:59]}  a6 {[%clk 0:02:58]} 7. Qf3 {[%clk 0:02:59]}  Bd6 {[%clk 0:02:50]} 8. O-O-O {[%clk 0:02:50]}  Nxd4 {[%clk 0:02:49]} 9. Bxd4 {[%clk 0:02:44]}  Be5 {[%clk 0:02:48]} 10. g3 {[%clk 0:02:40]}  Bxd4 {[%clk 0:02:46]} 11. Rxd4 {[%clk 0:02:40]}  Nf6 {[%clk 0:02:44]} 12. Bg2 {[%clk 0:02:32]}  O-O {[%clk 0:02:41]} 13. Rhd1 {[%clk 0:02:29]}  Rd8 {[%clk 0:02:13]} 14. h4 {[%clk 0:02:24]}  d6 {[%clk 0:02:06]} 15. e5 {[%clk 0:02:19]}  Ne8 {[%clk 0:01:53]} 16. exd6 {[%clk 0:02:13]}  Rxd6 {[%clk 0:01:54]} 17. Rxd6 {[%clk 0:02:07]}  Nxd6 {[%clk 0:01:55]} 18. Qf4 {[%clk 0:02:05]} 1-0


[Site "https://www.chess.com"]

[Event "Titled Tuesday Blitz March 28 Late 2023"]
[White "Melikhov, Evgeny V."]
[Black "Garrido, Denis"]
[WhiteFideId "4122046"]
[BlackFideId "601217"]
[WhiteElo "2158"]
[BlackElo "2307"]
[Result "0-1"]
[Round "10"]
[TimeControl "180+2"]
[Date "2023.03.28"]
[WhiteClock "0:00:01"]
[BlackClock "0:00:13"]

1. d4 {[%clk 0:03:00]}  d5 {[%clk 0:02:58]} 2. c4 {[%clk 0:03:00]}  e6 {[%clk 0:02:59]} 3. Nc3 {[%clk 0:03:00]}  a6 {[%clk 0:02:58]} 4. cxd5 {[%clk 0:02:59]}  exd5 {[%clk 0:02:59]} 5. Nf3 {[%clk 0:02:59]}  Nf6 {[%clk 0:02:58]} 6. Bg5 {[%clk 0:02:58]}  Be6 {[%clk 0:02:59]} 7. e3 {[%clk 0:02:58]}  Nbd7 {[%clk 0:02:59]} 8. Bd3 {[%clk 0:02:58]}  c6 {[%clk 0:02:55]} 9. Qc2 {[%clk 0:02:54]}  Bd6 {[%clk 0:02:54]} 10. O-O {[%clk 0:02:47]}  Qc7 {[%clk 0:02:53]} 11. h3 {[%clk 0:02:33]}  h6 {[%clk 0:02:50]} 12. Bxf6 {[%clk 0:02:30]}  Nxf6 {[%clk 0:02:50]} 13. Rab1 {[%clk 0:02:28]}  g5 {[%clk 0:02:38]} 14. e4 {[%clk 0:02:27]}  dxe4 {[%clk 0:02:30]} 15. Nxe4 {[%clk 0:02:27]}  Nxe4 {[%clk 0:02:30]} 16. Bxe4 {[%clk 0:02:27]}  O-O-O {[%clk 0:02:29]} 17. b4 {[%clk 0:02:18]}  Rhg8 {[%clk 0:02:28]} 18. Bh7 {[%clk 0:02:08]}  Rg7 {[%clk 0:02:11]} 19. Bf5 {[%clk 0:02:08]}  Kb8 {[%clk 0:02:02]} 20. Bxe6 {[%clk 0:02:07]}  fxe6 {[%clk 0:02:02]} 21. Qe4 {[%clk 0:02:00]}  g4 {[%clk 0:01:51]} 22. hxg4 {[%clk 0:01:54]}  Rdg8 {[%clk 0:01:51]} 23. Ne5 {[%clk 0:01:52]}  Ka8 {[%clk 0:01:33]} 24. g3 {[%clk 0:01:46]}  Rg5 {[%clk 0:01:29]} 25. Rfe1 {[%clk 0:01:34]}  Bxe5 {[%clk 0:01:28]} 26. dxe5 {[%clk 0:01:33]}  Rxg4 {[%clk 0:01:28]} 27. Qd3 {[%clk 0:01:14]}  h5 {[%clk 0:01:25]} 28. Re4 {[%clk 0:01:11]}  h4 {[%clk 0:01:21]} 29. Rxg4 {[%clk 0:01:08]}  Rxg4 {[%clk 0:01:22]} 30. Rd1 {[%clk 0:00:34]}  Qxe5 {[%clk 0:01:08]} 31. Qf3 {[%clk 0:00:30]}  Rg8 {[%clk 0:00:57]} 32. Kg2 {[%clk 0:00:19]}  hxg3 {[%clk 0:00:55]} 33. fxg3 {[%clk 0:00:19]}  Qb2+ {[%clk 0:00:53]} 34. Qf2 {[%clk 0:00:19]}  Qxb4 {[%clk 0:00:52]} 35. Rd7 {[%clk 0:00:17]}  Qe4+ {[%clk 0:00:43]} 36. Qf3 {[%clk 0:00:17]}  Qc2+ {[%clk 0:00:36]} 37. Qf2 {[%clk 0:00:17]}  Qg6 {[%clk 0:00:31]} 38. Qf3 {[%clk 0:00:14]}  e5 {[%clk 0:00:22]} 39. a4 {[%clk 0:00:12]}  e4 {[%clk 0:00:21]} 40. Qb3 {[%clk 0:00:11]}  Rb8 {[%clk 0:00:18]} 41. a5 {[%clk 0:00:10]}  Qf5 {[%clk 0:00:15]} 42. Rf7 {[%clk 0:00:09]}  Qd5 {[%clk 0:00:14]} 43. Qxd5 {[%clk 0:00:08]}  cxd5 {[%clk 0:00:15]} 44. Rd7 {[%clk 0:00:08]}  b5 {[%clk 0:00:14]} 45. axb6 {[%clk 0:00:05]}  Rxb6 {[%clk 0:00:14]} 46. Rxd5 {[%clk 0:00:05]}  Kb7 {[%clk 0:00:13]} 47. Kf2 {[%clk 0:00:04]}  Re6 {[%clk 0:00:12]} 48. Ke3 {[%clk 0:00:04]}  Kb6 {[%clk 0:00:12]} 49. g4 {[%clk 0:00:05]}  a5 {[%clk 0:00:12]} 50. g5 {[%clk 0:00:05]}  a4 {[%clk 0:00:13]} 51. g6 {[%clk 0:00:04]}  Rxg6 {[%clk 0:00:12]} 52. Kxe4 {[%clk 0:00:05]}  Rc6 {[%clk 0:00:13]} 53. Kd3 {[%clk 0:00:04]}  Ka6 {[%clk 0:00:12]} 54. Rd8 {[%clk 0:00:03]}  Kb5 {[%clk 0:00:12]} 55. Ra8 {[%clk 0:00:03]}  Kb4 {[%clk 0:00:12]} 56. Kd2 {[%clk 0:00:01]}  Kb3 {[%clk 0:00:13]} 57. Rb8+ {[%clk 0:00:01]}  Ka2 {[%clk 0:00:13]} 58. Rb7 {[%clk 0:00:02]}  a3 {[%clk 0:00:13]} 59. Rb8 {[%clk 0:00:02]}  Ka1 {[%clk 0:00:13]} 60. Rb7 {[%clk 0:00:02]}  a2 {[%clk 0:00:14]} 61. Rb8 {[%clk 0:00:02]}  Rc7 {[%clk 0:00:12]} 62. Rb6 {[%clk 0:00:02]}  Rc5 {[%clk 0:00:11]} 63. Rb8 {[%clk 0:00:01]}  Rh5 {[%clk 0:00:11]} 64. Rb7 {[%clk 0:00:01]}  Rh2+ {[%clk 0:00:12]} 65. Kd1 {[%clk 0:00:01]}  Rh1+ {[%clk 0:00:12]} 66. Kc2 {[%clk 0:00:01]}  Rb1 {[%clk 0:00:12]} 67. Ra7 {[%clk 0:00:01]}  Rb2+ {[%clk 0:00:12]} 68. Kc1 {[%clk 0:00:01]}  Rb3 {[%clk 0:00:13]} 69. Kc2 {[%clk 0:00:01]}  Rb8 {[%clk 0:00:13]} 70. Ra6 {[%clk 0:00:01]}  Rc8+ {[%clk 0:00:13]} 0-1


[Site "https://www.chess.com"]

[Event "Titled Tuesday Blitz March 28 Late 2023"]
[White "Wu, Sibo"]
[Black "Dmitrenko, Viktor"]
[WhiteFideId "8606048"]
[BlackFideId "14110270"]
[WhiteElo "2297"]
[BlackElo "2292"]
[Result "1/2-1/2"]
[Round "10"]
[TimeControl "180+2"]
[Date "2023.03.28"]
[WhiteClock "0:00:08"]
[BlackClock "0:00:04"]

1. d4 {[%clk 0:02:59]}  e6 {[%clk 0:02:53]} 2. Nf3 {[%clk 0:02:55]}  c5 {[%clk 0:02:52]} 3. c3 {[%clk 0:02:51]}  d5 {[%clk 0:02:51]} 4. Bf4 {[%clk 0:02:51]}  Bd6 {[%clk 0:02:50]} 5. Bg3 {[%clk 0:02:50]}  Nf6 {[%clk 0:02:47]} 6. e3 {[%clk 0:02:50]}  b6 {[%clk 0:02:45]} 7. Nbd2 {[%clk 0:02:49]}  O-O {[%clk 0:02:41]} 8. Bd3 {[%clk 0:02:49]}  Qc7 {[%clk 0:02:40]} 9. Ne5 {[%clk 0:02:49]}  Ba6 {[%clk 0:02:40]} 10. Bxa6 {[%clk 0:02:40]}  Nxa6 {[%clk 0:02:41]} 11. O-O {[%clk 0:02:39]}  Nb8 {[%clk 0:02:39]} 12. a4 {[%clk 0:02:31]}  a5 {[%clk 0:02:33]} 13. Qe2 {[%clk 0:02:17]}  Nfd7 {[%clk 0:02:32]} 14. f4 {[%clk 0:02:13]}  f6 {[%clk 0:02:30]} 15. Nd3 {[%clk 0:02:07]}  Nc6 {[%clk 0:02:26]} 16. Qg4 {[%clk 0:01:53]}  Rae8 {[%clk 0:02:21]} 17. Rae1 {[%clk 0:01:48]}  c4 {[%clk 0:02:16]} 18. Nf2 {[%clk 0:01:46]}  f5 {[%clk 0:02:15]} 19. Qd1 {[%clk 0:01:39]}  Nf6 {[%clk 0:02:13]} 20. Bh4 {[%clk 0:01:38]}  Rb8 {[%clk 0:02:10]} 21. Bxf6 {[%clk 0:01:31]}  Rxf6 {[%clk 0:02:10]} 22. Nf3 {[%clk 0:01:30]}  b5 {[%clk 0:02:08]} 23. axb5 {[%clk 0:01:13]}  Rxb5 {[%clk 0:02:08]} 24. Qc2 {[%clk 0:01:14]}  Qb6 {[%clk 0:02:05]} 25. Re2 {[%clk 0:01:04]}  Rf8 {[%clk 0:02:03]} 26. g4 {[%clk 0:01:03]}  Ne7 {[%clk 0:02:02]} 27. Ng5 {[%clk 0:01:01]}  Bc7 {[%clk 0:01:56]} 28. h4 {[%clk 0:00:57]}  Rb3 {[%clk 0:01:50]} 29. h5 {[%clk 0:00:56]}  Rb8 {[%clk 0:01:37]} 30. Nd1 {[%clk 0:00:56]}  h6 {[%clk 0:01:34]} 31. Nf3 {[%clk 0:00:56]}  fxg4 {[%clk 0:01:33]} 32. Nh4 {[%clk 0:00:55]}  Rf8 {[%clk 0:01:23]} 33. Rg2 {[%clk 0:00:55]}  Nf5 {[%clk 0:01:21]} 34. Rxg4 {[%clk 0:00:45]}  Bd8 {[%clk 0:01:11]} 35. Ng6 {[%clk 0:00:43]}  Re8 {[%clk 0:01:04]} 36. Rf2 {[%clk 0:00:43]}  a4 {[%clk 0:01:00]} 37. Rfg2 {[%clk 0:00:40]}  Bf6 {[%clk 0:01:00]} 38. Ne5 {[%clk 0:00:33]}  Bxe5 {[%clk 0:00:57]} 39. fxe5 {[%clk 0:00:32]}  Re7 {[%clk 0:00:56]} 40. Rg6 {[%clk 0:00:30]}  Rf7 {[%clk 0:00:48]} 41. e4 {[%clk 0:00:26]}  dxe4 {[%clk 0:00:44]} 42. Qxe4 {[%clk 0:00:26]}  Qb7 {[%clk 0:00:38]} 43. Qxb7 {[%clk 0:00:19]}  Rfxb7 {[%clk 0:00:34]} 44. Rxe6 {[%clk 0:00:19]}  a3 {[%clk 0:00:34]} 45. bxa3 {[%clk 0:00:15]}  Rb1 {[%clk 0:00:33]} 46. Rd2 {[%clk 0:00:09]}  Ne3 {[%clk 0:00:32]} 47. Rc6 {[%clk 0:00:09]}  Nxd1 {[%clk 0:00:30]} 48. Kh2 {[%clk 0:00:08]}  Ne3 {[%clk 0:00:26]} 49. d5 {[%clk 0:00:08]}  R7b2 {[%clk 0:00:24]} 50. Rxb2 {[%clk 0:00:08]}  Rxb2+ {[%clk 0:00:25]} 51. Kg3 {[%clk 0:00:08]}  Nxd5 {[%clk 0:00:24]} 52. Rxc4 {[%clk 0:00:08]}  Rb3 {[%clk 0:00:24]} 53. Kg4 {[%clk 0:00:07]}  Kf7 {[%clk 0:00:22]} 54. Rc5 {[%clk 0:00:06]}  Ke6 {[%clk 0:00:21]} 55. c4 {[%clk 0:00:05]}  Ne7 {[%clk 0:00:20]} 56. a4 {[%clk 0:00:04]}  Ra3 {[%clk 0:00:18]} 57. a5 {[%clk 0:00:03]}  Ra4 {[%clk 0:00:18]} 58. Kf4 {[%clk 0:00:03]}  Ra2 {[%clk 0:00:17]} 59. Kg4 {[%clk 0:00:03]}  Ra1 {[%clk 0:00:17]} 60. Kf4 {[%clk 0:00:03]}  Re1 {[%clk 0:00:16]} 61. Rb5 {[%clk 0:00:03]}  Rf1+ {[%clk 0:00:15]} 62. Kg4 {[%clk 0:00:04]}  Ra1 {[%clk 0:00:15]} 63. Kf4 {[%clk 0:00:03]}  Nc6 {[%clk 0:00:13]} 64. Rb6 {[%clk 0:00:03]}  Kd7 {[%clk 0:00:12]} 65. e6+ {[%clk 0:00:04]}  Kc7 {[%clk 0:00:12]} 66. Ra6 {[%clk 0:00:04]}  Re1 {[%clk 0:00:11]} 67. e7 {[%clk 0:00:03]}  Rxe7 {[%clk 0:00:10]} 68. Kf5 {[%clk 0:00:04]}  Re5+ {[%clk 0:00:09]} 69. Kg6 {[%clk 0:00:04]}  Rg5+ {[%clk 0:00:10]} 70. Kf7 {[%clk 0:00:04]}  Ne5+ {[%clk 0:00:08]} 71. Kf8 {[%clk 0:00:05]}  Nxc4 {[%clk 0:00:06]} 72. Ra7+ {[%clk 0:00:05]}  Kd6 {[%clk 0:00:06]} 73. Rxg7 {[%clk 0:00:06]}  Rxh5 {[%clk 0:00:06]} 74. Rg6+ {[%clk 0:00:06]}  Kc7 {[%clk 0:00:05]} 75. a6 {[%clk 0:00:06]}  Kb8 {[%clk 0:00:05]} 76. Kg7 {[%clk 0:00:07]}  Rg5 {[%clk 0:00:04]} 77. Kxh6 {[%clk 0:00:07]}  Rxg6+ {[%clk 0:00:04]} 78. Kxg6 {[%clk 0:00:08]}  Ka7 {[%clk 0:00:03]} 79. Kf7 {[%clk 0:00:08]}  Kxa6 {[%clk 0:00:04]} 1/2-1/2


[Site "https://www.chess.com"]

[Event "Titled Tuesday Blitz March 28 Late 2023"]
[White "OKEKE, Isaac Chukwudalu"]
[Black "Rios Escobar, Adan"]
[WhiteFideId "8508526"]
[BlackFideId "3403645"]
[WhiteElo "2161"]
[BlackElo "2415"]
[Result "0-1"]
[Round "10"]
[TimeControl "180+2"]
[Date "2023.03.28"]
[WhiteClock "0:00:01"]
[BlackClock "0:00:11"]

1. e4 {[%clk 0:03:00]}  c5 {[%clk 0:02:59]} 2. Nf3 {[%clk 0:03:01]}  d6 {[%clk 0:02:59]} 3. d4 {[%clk 0:03:01]}  cxd4 {[%clk 0:03:00]} 4. Nxd4 {[%clk 0:03:02]}  Nf6 {[%clk 0:03:01]} 5. Nc3 {[%clk 0:03:02]}  a6 {[%clk 0:03:01]} 6. Be2 {[%clk 0:03:02]}  e5 {[%clk 0:03:00]} 7. Nb3 {[%clk 0:03:02]}  Be6 {[%clk 0:03:00]} 8. g4 {[%clk 0:03:03]}  d5 {[%clk 0:02:55]} 9. exd5 {[%clk 0:03:03]}  Nxd5 {[%clk 0:02:54]} 10. Nxd5 {[%clk 0:03:02]}  Qxd5 {[%clk 0:02:53]} 11. Bf3 {[%clk 0:03:01]}  Qxd1+ {[%clk 0:02:52]} 12. Kxd1 {[%clk 0:03:01]}  Nc6 {[%clk 0:02:52]} 13. c3 {[%clk 0:02:56]}  O-O-O+ {[%clk 0:02:52]} 14. Kc2 {[%clk 0:02:57]}  h5 {[%clk 0:02:50]} 15. h3 {[%clk 0:02:20]}  hxg4 {[%clk 0:02:49]} 16. hxg4 {[%clk 0:02:21]}  Rxh1 {[%clk 0:02:47]} 17. Bxh1 {[%clk 0:02:19]}  Bxg4 {[%clk 0:02:47]} 18. Be3 {[%clk 0:02:19]}  Bf5+ {[%clk 0:02:44]} 19. Kc1 {[%clk 0:02:20]}  f6 {[%clk 0:02:21]} 20. Nd2 {[%clk 0:02:03]}  Kc7 {[%clk 0:02:01]} 21. Nc4 {[%clk 0:02:01]}  Rd7 {[%clk 0:01:55]} 22. a4 {[%clk 0:01:54]}  Bd3 {[%clk 0:01:47]} 23. Nb6 {[%clk 0:01:44]}  Rd8 {[%clk 0:01:38]} 24. Nd5+ {[%clk 0:01:36]}  Kb8 {[%clk 0:01:36]} 25. b4 {[%clk 0:01:28]}  e4 {[%clk 0:01:34]} 26. Nf4 {[%clk 0:01:27]}  Ne5 {[%clk 0:01:34]} 27. Ne6 {[%clk 0:01:14]}  Re8 {[%clk 0:01:34]} 28. Nxf8 {[%clk 0:01:12]}  Rxf8 {[%clk 0:01:34]} 29. Bf4 {[%clk 0:01:11]}  Re8 {[%clk 0:01:31]} 30. Kd2 {[%clk 0:01:10]}  Kc8 {[%clk 0:01:30]} 31. Re1 {[%clk 0:01:02]}  Nc4+ {[%clk 0:01:26]} 32. Kc1 {[%clk 0:01:02]}  g5 {[%clk 0:01:22]} 33. Bd2 {[%clk 0:00:27]}  Nxd2 {[%clk 0:01:10]} 34. Kxd2 {[%clk 0:00:28]}  f5 {[%clk 0:01:10]} 35. f3 {[%clk 0:00:25]}  Rd8 {[%clk 0:01:04]} 36. fxe4 {[%clk 0:00:13]}  Bxe4+ {[%clk 0:01:04]} 37. Kc1 {[%clk 0:00:14]}  Bxh1 {[%clk 0:00:59]} 38. Rxh1 {[%clk 0:00:15]}  Rd5 {[%clk 0:00:48]} 39. Rh5 {[%clk 0:00:13]}  f4 {[%clk 0:00:44]} 40. c4 {[%clk 0:00:09]}  Rd4 {[%clk 0:00:38]} 41. Rxg5 {[%clk 0:00:08]}  Rxc4+ {[%clk 0:00:38]} 42. Kb2 {[%clk 0:00:08]}  Rxb4+ {[%clk 0:00:39]} 43. Ka3 {[%clk 0:00:09]}  Re4 {[%clk 0:00:39]} 44. Rg7 {[%clk 0:00:07]}  a5 {[%clk 0:00:37]} 45. Rf7 {[%clk 0:00:06]}  Re3+ {[%clk 0:00:37]} 46. Kb2 {[%clk 0:00:06]}  f3 {[%clk 0:00:37]} 47. Kc2 {[%clk 0:00:06]}  Kb8 {[%clk 0:00:35]} 48. Kd2 {[%clk 0:00:06]}  Ra3 {[%clk 0:00:35]} 49. Rf4 {[%clk 0:00:06]}  Ka7 {[%clk 0:00:25]} 50. Kc2 {[%clk 0:00:05]}  Ka6 {[%clk 0:00:24]} 51. Rf6+ {[%clk 0:00:05]}  b6 {[%clk 0:00:24]} 52. Rf4 {[%clk 0:00:05]}  Kb7 {[%clk 0:00:15]} 53. Kb2 {[%clk 0:00:05]}  Re3 {[%clk 0:00:15]} 54. Kc2 {[%clk 0:00:04]}  Kc6 {[%clk 0:00:15]} 55. Kd2 {[%clk 0:00:04]}  Ra3 {[%clk 0:00:15]} 56. Rf6+ {[%clk 0:00:03]}  Kc5 {[%clk 0:00:15]} 57. Rf4 {[%clk 0:00:03]}  Kd5 {[%clk 0:00:13]} 58. Rf8 {[%clk 0:00:03]}  Ke4 {[%clk 0:00:11]} 59. Re8+ {[%clk 0:00:03]}  Kf4 {[%clk 0:00:12]} 60. Rf8+ {[%clk 0:00:03]}  Kg3 {[%clk 0:00:12]} 61. Kc2 {[%clk 0:00:02]}  Kf2 {[%clk 0:00:12]} 62. Kb2 {[%clk 0:00:02]}  Re3 {[%clk 0:00:12]} 63. Rf7 {[%clk 0:00:03]}  Re4 {[%clk 0:00:12]} 64. Kb3 {[%clk 0:00:03]}  Rb4+ {[%clk 0:00:12]} 65. Ka3 {[%clk 0:00:03]}  Ke3 {[%clk 0:00:12]} 66. Re7+ {[%clk 0:00:04]}  Re4 {[%clk 0:00:12]} 67. Rf7 {[%clk 0:00:04]}  f2 {[%clk 0:00:11]} 68. Rf8 {[%clk 0:00:04]}  Rf4 {[%clk 0:00:12]} 69. Re8+ {[%clk 0:00:04]}  Kf3 {[%clk 0:00:12]} 70. Re1 {[%clk 0:00:01]}  fxe1=Q {[%clk 0:00:11]} 71. Kb2 {[%clk 0:00:01]}  Qb4+ {[%clk 0:00:11]} 0-1


[Site "https://www.chess.com"]